[Event "*** Titled Tuesday Blitz"]
[Site "Chess.com"]
[Date "2020.04.07"]
[Round "8"]
[White "Bagirova"]
[Black "dmvlad"]
[Result "1-0"]
[WhiteElo "2183"]
[BlackElo "2292"]
[TimeControl "180+1"]
[EndTime "14:33:59 PDT"]
[Termination "Bagirova won by checkmate"]

1. e4 {[%clk 0:03:00.9]} 1... c6 {[%clk 0:02:59.6]} 2. Nf3 {[%clk 0:03:00.2]}
2... d5 {[%clk 0:02:58.7]} 3. Nc3 {[%clk 0:03:00.2]} 3... Bg4 {[%clk 0:02:58.6]}
4. exd5 {[%clk 0:02:57.4]} 4... cxd5 {[%clk 0:02:58.4]} 5. d4 {[%clk 0:02:57.6]}
5... Nc6 {[%clk 0:02:58.5]} 6. Bb5 {[%clk 0:02:53.1]} 6... Nf6 {[%clk 0:02:52]}
7. h3 {[%clk 0:02:50.2]} 7... Bh5 {[%clk 0:02:51.5]} 8. O-O {[%clk 0:02:49.3]}
8... e6 {[%clk 0:02:51.5]} 9. Qd3 {[%clk 0:02:41.8]} 9... Bg6 {[%clk 0:02:44.9]}
10. Qe2 {[%clk 0:02:39.7]} 10... Bd6 {[%clk 0:02:10.9]} 11. Ne5 {[%clk
0:02:15.6]} 11... Qc7 {[%clk 0:02:10.5]} 12. Nxg6 {[%clk 0:02:09.3]} 12... hxg6
{[%clk 0:02:10]} 13. Bg5 {[%clk 0:02:00.9]} 13... O-O {[%clk 0:01:58.5]} 14.
Bxc6 {[%clk 0:01:53.4]} 14... Qxc6 {[%clk 0:01:57.6]} 15. Bxf6 {[%clk
0:01:47.3]} 15... gxf6 {[%clk 0:01:57.5]} 16. f4 {[%clk 0:01:36.5]} 16... Rac8
{[%clk 0:01:38.9]} 17. Qf2 {[%clk 0:01:23.4]} 17... Bb4 {[%clk 0:01:26.4]} 18.
Ne2 {[%clk 0:00:47.1]} 18... Qxc2 {[%clk 0:01:25.3]} 19. Rac1 {[%clk 0:00:39.6]}
19... Qxb2 {[%clk 0:00:51.6]} 20. Rb1 {[%clk 0:00:35.5]} 20... Qa3 {[%clk
0:00:51]} 21. Rb3 {[%clk 0:00:33.1]} 21... Qa4 {[%clk 0:00:29.3]} 22. f5 {[%clk
0:00:32.1]} 22... exf5 {[%clk 0:00:27.3]} 23. Rg3 {[%clk 0:00:30.4]} 23... Bd6
{[%clk 0:00:21.8]} 24. Rb3 {[%clk 0:00:20.5]} 24... b6 {[%clk 0:00:18.7]} 25. g4
{[%clk 0:00:18.9]} 25... Rc2 {[%clk 0:00:17.7]} 26. Rf3 {[%clk 0:00:18.3]} 26...
fxg4 {[%clk 0:00:15.7]} 27. hxg4 {[%clk 0:00:17.3]} 27... Qxa2 {[%clk
0:00:15.7]} 28. Qh4 {[%clk 0:00:15.8]} 28... Be7 {[%clk 0:00:13.3]} 29. Rh3
{[%clk 0:00:15.7]} 29... Rxe2 {[%clk 0:00:03.7]} 30. Qh8# {[%clk 0:00:15.4]} 1-0

[Event "*** Titled Tuesday Blitz"]
[Site "Chess.com"]
[Date "2020.04.07"]
[Round "8"]
[White "LilRag"]
[Black "StoreySniper"]
[Result "0-1"]
[WhiteElo "2380"]
[BlackElo "2530"]
[TimeControl "180+1"]
[EndTime "14:34:03 PDT"]
[Termination "StoreySniper won by resignation"]

1. Nf3 {[%clk 0:03:00.9]} 1... d5 {[%clk 0:02:59.2]} 2. e3 {[%clk 0:02:59.7]}
2... c6 {[%clk 0:02:59.5]} 3. d4 {[%clk 0:02:59.8]} 3... Nf6 {[%clk 0:02:59.9]}
4. Bd3 {[%clk 0:03:00.3]} 4... Bg4 {[%clk 0:02:59.8]} 5. O-O {[%clk 0:03:00.4]}
5... e6 {[%clk 0:03:00.1]} 6. Nbd2 {[%clk 0:03:00.4]} 6... Nbd7 {[%clk
0:03:00.5]} 7. h3 {[%clk 0:03:00.8]} 7... Bh5 {[%clk 0:03:00]} 8. c4 {[%clk
0:02:59.9]} 8... Bg6 {[%clk 0:03:00.2]} 9. Qe2 {[%clk 0:02:57.7]} 9... Bxd3
{[%clk 0:02:59.1]} 10. Qxd3 {[%clk 0:02:57.4]} 10... Be7 {[%clk 0:02:58]} 11. e4
{[%clk 0:02:56.5]} 11... dxe4 {[%clk 0:02:57.8]} 12. Nxe4 {[%clk 0:02:57]} 12...
O-O {[%clk 0:02:46.9]} 13. b3 {[%clk 0:02:55.8]} 13... Nxe4 {[%clk 0:02:36.2]}
14. Qxe4 {[%clk 0:02:53.6]} 14... Bf6 {[%clk 0:02:36]} 15. Bb2 {[%clk
0:02:52.8]} 15... Qc7 {[%clk 0:02:27.1]} 16. Rad1 {[%clk 0:02:48.5]} 16... Rad8
{[%clk 0:02:25.1]} 17. Rfe1 {[%clk 0:02:44.9]} 17... Rfe8 {[%clk 0:02:24.4]} 18.
Qc2 {[%clk 0:02:42.8]} 18... a6 {[%clk 0:02:17]} 19. Re2 {[%clk 0:02:40.6]}
19... Nf8 {[%clk 0:02:11.7]} 20. g3 {[%clk 0:02:12.2]} 20... Ng6 {[%clk
0:02:09.2]} 21. h4 {[%clk 0:02:09.9]} 21... h6 {[%clk 0:01:59.8]} 22. Rde1
{[%clk 0:02:01]} 22... Rf8 {[%clk 0:01:29.6]} 23. Qb1 {[%clk 0:01:56.4]} 23...
Ne7 {[%clk 0:01:20.5]} 24. Qe4 {[%clk 0:01:33.3]} 24... Nf5 {[%clk 0:01:17.3]}
25. Kg2 {[%clk 0:00:48.8]} 25... Rd7 {[%clk 0:01:02.3]} 26. Qg4 {[%clk
0:00:24.2]} 26... Rdd8 {[%clk 0:00:37.2]} 27. Re4 {[%clk 0:00:20.8]} 27... c5
{[%clk 0:00:32.7]} 28. Rd1 {[%clk 0:00:13]} 28... cxd4 {[%clk 0:00:29.2]} 29.
Nxd4 {[%clk 0:00:11.9]} 29... Bxd4 {[%clk 0:00:26]} 30. Bxd4 {[%clk 0:00:12.4]}
30... Qc6 {[%clk 0:00:24.9]} 31. Qf3 {[%clk 0:00:11.7]} 31... Rd7 {[%clk
0:00:17.4]} 32. Rg4 {[%clk 0:00:06.5]} 32... Qxf3+ {[%clk 0:00:15.4]} 33. Kxf3
{[%clk 0:00:06.7]} 33... Rfd8 {[%clk 0:00:16]} 0-1

[Event "*** Titled Tuesday Blitz"]
[Site "Chess.com"]
[Date "2020.04.07"]
[Round "8"]
[White "AryanTari"]
[Black "VeraLevel"]
[Result "1-0"]
[WhiteElo "2901"]
[BlackElo "2734"]
[TimeControl "180+1"]
[EndTime "14:34:04 PDT"]
[Termination "AryanTari won by resignation"]

1. e4 {[%clk 0:03:00.9]} 1... c6 {[%clk 0:03:00.4]} 2. d4 {[%clk 0:02:58.4]}
2... d5 {[%clk 0:03:00.9]} 3. exd5 {[%clk 0:02:58.7]} 3... cxd5 {[%clk
0:03:01.8]} 4. Bd3 {[%clk 0:02:58.4]} 4... Nc6 {[%clk 0:03:02.1]} 5. c3 {[%clk
0:02:58.9]} 5... Nf6 {[%clk 0:03:02.3]} 6. h3 {[%clk 0:02:57.7]} 6... Qc7 {[%clk
0:02:59.2]} 7. Nf3 {[%clk 0:02:55.6]} 7... g6 {[%clk 0:02:54.8]} 8. Qc2 {[%clk
0:02:55]} 8... Bg7 {[%clk 0:02:54.9]} 9. O-O {[%clk 0:02:54.9]} 9... O-O {[%clk
0:02:55.3]} 10. Be3 {[%clk 0:02:54.4]} 10... Rb8 {[%clk 0:02:53.4]} 11. Nbd2
{[%clk 0:02:33.9]} 11... b5 {[%clk 0:02:52.8]} 12. a3 {[%clk 0:02:22.1]} 12...
a5 {[%clk 0:02:51.5]} 13. b4 {[%clk 0:02:17.4]} 13... a4 {[%clk 0:02:23.3]} 14.
Rae1 {[%clk 0:02:15.3]} 14... Nh5 {[%clk 0:02:20.2]} 15. Qc1 {[%clk 0:01:57.4]}
15... Nf4 {[%clk 0:02:17.4]} 16. Bc2 {[%clk 0:01:52.9]} 16... f6 {[%clk
0:02:11.4]} 17. Bb1 {[%clk 0:01:23]} 17... Kh8 {[%clk 0:01:57.1]} 18. Kh1 {[%clk
0:01:14.3]} 18... e5 {[%clk 0:01:53]} 19. Bxf4 {[%clk 0:01:10.1]} 19... exf4
{[%clk 0:01:53.9]} 20. Re2 {[%clk 0:01:00.4]} 20... Bd7 {[%clk 0:01:54.3]} 21.
Ne1 {[%clk 0:00:57.4]} 21... Nxd4 {[%clk 0:01:49]} 22. Re7 {[%clk 0:00:53.5]}
22... Nc6 {[%clk 0:01:43.8]} 23. Re2 {[%clk 0:00:53.7]} 23... Ne5 {[%clk
0:01:44]} 24. Nd3 {[%clk 0:00:47.7]} 24... Nxd3 {[%clk 0:01:26.2]} 25. Bxd3
{[%clk 0:00:48.6]} 25... Rfc8 {[%clk 0:01:26.6]} 26. Nf3 {[%clk 0:00:29.5]}
26... Qxc3 {[%clk 0:01:26.1]} 27. Qb1 {[%clk 0:00:26.8]} 27... Re8 {[%clk
0:01:22.1]} 28. Rc1 {[%clk 0:00:16.6]} 28... Qxa3 {[%clk 0:01:22.1]} 29. Rc7
{[%clk 0:00:12.9]} 29... Rxe2 {[%clk 0:01:18.3]} 30. Bxe2 {[%clk 0:00:13.4]}
30... Bf5 {[%clk 0:01:18.9]} 31. Qd1 {[%clk 0:00:13.2]} 31... Qb3 {[%clk
0:01:16]} 32. Qd4 {[%clk 0:00:12.9]} 32... Qb1+ {[%clk 0:01:14]} 33. Kh2 {[%clk
0:00:12.8]} 33... Qe4 {[%clk 0:01:14.9]} 34. Qa7 {[%clk 0:00:10.4]} 34... Rg8
{[%clk 0:01:12.7]} 35. Nd4 {[%clk 0:00:08.8]} 35... a3 {[%clk 0:00:46.3]} 36.
Bf3 {[%clk 0:00:08.8]} 36... Qe5 {[%clk 0:00:43.3]} 37. Re7 {[%clk 0:00:08.3]}
37... a2 {[%clk 0:00:40.4]} 38. Rxe5 {[%clk 0:00:07.7]} 38... fxe5 {[%clk
0:00:41.3]} 39. Nxf5 {[%clk 0:00:08.3]} 39... gxf5 {[%clk 0:00:38.2]} 40. Bxd5
{[%clk 0:00:06.5]} 40... e4 {[%clk 0:00:38]} 41. Qxa2 {[%clk 0:00:03.7]} 41...
Rd8 {[%clk 0:00:38.1]} 42. Bc6 {[%clk 0:00:04]} 42... Be5 {[%clk 0:00:38.1]} 43.
Qe6 {[%clk 0:00:04.4]} 43... f3+ {[%clk 0:00:38.6]} 44. g3 {[%clk 0:00:04.6]}
44... Bxg3+ {[%clk 0:00:36.7]} 45. Kxg3 {[%clk 0:00:04.6]} 45... Rg8+ {[%clk
0:00:37.2]} 46. Kf4 {[%clk 0:00:04.9]} 46... Rf8 {[%clk 0:00:37.2]} 47. Qe5+
{[%clk 0:00:05.1]} 47... Kg8 {[%clk 0:00:37.4]} 48. Bd5+ {[%clk 0:00:05.8]}
48... Rf7 {[%clk 0:00:38.3]} 49. Qe8+ {[%clk 0:00:06.3]} 1-0

[Event "*** Titled Tuesday Blitz"]
[Site "Chess.com"]
[Date "2020.04.07"]
[Round "8"]
[White "jmduque"]
[Black "MFBerna"]
[Result "1-0"]
[WhiteElo "2512"]
[BlackElo "2335"]
[TimeControl "180+1"]
[EndTime "14:34:05 PDT"]
[Termination "jmduque won on time"]

1. e4 {[%clk 0:02:57.6]} 1... c6 {[%clk 0:02:59.8]} 2. Nf3 {[%clk 0:02:56.7]}
2... d5 {[%clk 0:03:00.7]} 3. d3 {[%clk 0:02:56.6]} 3... dxe4 {[%clk 0:02:59.9]}
4. dxe4 {[%clk 0:02:55.9]} 4... Qxd1+ {[%clk 0:03:00.8]} 5. Kxd1 {[%clk
0:02:56.1]} 5... Bg4 {[%clk 0:02:58.8]} 6. Be2 {[%clk 0:02:56.1]} 6... Nd7
{[%clk 0:02:58.4]} 7. Nfd2 {[%clk 0:02:54.5]} 7... Be6 {[%clk 0:02:46.1]} 8. Bc4
{[%clk 0:02:50.7]} 8... Bxc4 {[%clk 0:02:42.5]} 9. Nxc4 {[%clk 0:02:50.3]} 9...
O-O-O {[%clk 0:02:43]} 10. Ke2 {[%clk 0:02:47.7]} 10... e5 {[%clk 0:02:32.5]}
11. a4 {[%clk 0:02:45.9]} 11... Bc5 {[%clk 0:02:20]} 12. c3 {[%clk 0:02:44.1]}
12... Be7 {[%clk 0:02:01.9]} 13. Nbd2 {[%clk 0:02:38.9]} 13... Ngf6 {[%clk
0:01:58.7]} 14. f3 {[%clk 0:02:37.8]} 14... Ne8 {[%clk 0:01:53.2]} 15. Nb3
{[%clk 0:02:36.4]} 15... Nd6 {[%clk 0:01:50.5]} 16. Nxd6+ {[%clk 0:02:32.9]}
16... Bxd6 {[%clk 0:01:51.4]} 17. Be3 {[%clk 0:02:32.9]} 17... Kb8 {[%clk
0:01:48.6]} 18. Rhd1 {[%clk 0:02:32.4]} 18... Nb6 {[%clk 0:01:40.2]} 19. Nd2
{[%clk 0:02:29.8]} 19... Bc7 {[%clk 0:01:33.9]} 20. a5 {[%clk 0:02:26.9]} 20...
Nd7 {[%clk 0:01:33.5]} 21. Nc4 {[%clk 0:02:26.7]} 21... f6 {[%clk 0:01:26.6]}
22. Rd2 {[%clk 0:02:18.4]} 22... Nf8 {[%clk 0:01:23]} 23. Rad1 {[%clk
0:02:17.3]} 23... Ne6 {[%clk 0:01:22.4]} 24. Rd7 {[%clk 0:02:15.3]} 24... Rxd7
{[%clk 0:01:16.4]} 25. Rxd7 {[%clk 0:02:14.6]} 25... Re8 {[%clk 0:01:09.3]} 26.
g3 {[%clk 0:02:09.8]} 26... Kc8 {[%clk 0:01:08.5]} 27. Rf7 {[%clk 0:02:06.6]}
27... Kb8 {[%clk 0:00:47.9]} 28. h4 {[%clk 0:02:06.5]} 28... h6 {[%clk 0:00:42]}
29. h5 {[%clk 0:02:02.6]} 29... Bd8 {[%clk 0:00:26.2]} 30. Rxb7+ {[%clk
0:01:55.6]} 30... Kxb7 {[%clk 0:00:24.9]} 31. Nd6+ {[%clk 0:01:56.5]} 31... Kc7
{[%clk 0:00:17.3]} 32. Nxe8+ {[%clk 0:01:57.4]} 32... Kd7 {[%clk 0:00:18.1]} 33.
Nxg7 {[%clk 0:01:50.8]} 33... Nxg7 {[%clk 0:00:17.5]} 34. Bxa7 {[%clk
0:01:51.7]} 34... Bxa5 {[%clk 0:00:17.4]} 35. g4 {[%clk 0:01:50.4]} 35... Ne6
{[%clk 0:00:16.5]} 36. Be3 {[%clk 0:01:49.4]} 36... Nf4+ {[%clk 0:00:15.5]} 37.
Bxf4 {[%clk 0:01:49.6]} 37... exf4 {[%clk 0:00:16.4]} 38. e5 {[%clk 0:01:48.2]}
38... fxe5 {[%clk 0:00:15.8]} 39. g5 {[%clk 0:01:47.9]} 39... Ke6 {[%clk
0:00:14]} 40. gxh6 {[%clk 0:01:47.8]} 40... Kf6 {[%clk 0:00:13.9]} 41. Kd3
{[%clk 0:01:48.2]} 41... Bd8 {[%clk 0:00:06.6]} 42. Ke4 {[%clk 0:01:48.2]} 42...
Be7 {[%clk 0:00:07.5]} 43. h7 {[%clk 0:01:42.9]} 43... Kg7 {[%clk 0:00:08.4]}
44. Kxe5 {[%clk 0:01:42.5]} 44... Kxh7 {[%clk 0:00:05.7]} 45. Kxf4 {[%clk
0:01:42.6]} 45... Kh6 {[%clk 0:00:05.6]} 46. Kf5 {[%clk 0:01:42.9]} 46... Kxh5
{[%clk 0:00:05.1]} 47. Ke6 {[%clk 0:01:43.4]} 47... Bg5 {[%clk 0:00:05.5]} 48.
Kd6 {[%clk 0:01:42.2]} 48... Bc1 {[%clk 0:00:05.3]} 49. b3 {[%clk 0:01:41.6]}
49... Bb2 {[%clk 0:00:04.5]} 50. c4 {[%clk 0:01:40.9]} 50... Kg5 {[%clk
0:00:05.4]} 51. Kxc6 {[%clk 0:01:40.8]} 51... Kf4 {[%clk 0:00:06.3]} 52. b4
{[%clk 0:01:40.3]} 52... Ke5 {[%clk 0:00:06.3]} 53. b5 {[%clk 0:01:39.7]} 53...
Ke6 {[%clk 0:00:06]} 54. c5 {[%clk 0:01:38.7]} 54... Be5 {[%clk 0:00:06.2]} 55.
b6 {[%clk 0:01:38.6]} 55... Ke7 {[%clk 0:00:06.4]} 56. b7 {[%clk 0:01:37.8]}
56... Kd8 {[%clk 0:00:06.6]} 57. Kd5 {[%clk 0:01:37.5]} 57... Bb8 {[%clk
0:00:05.7]} 58. c6 {[%clk 0:01:37.6]} 58... Bc7 {[%clk 0:00:04.6]} 59. Kc5
{[%clk 0:01:35.1]} 59... Bb8 {[%clk 0:00:04.8]} 60. Kb6 {[%clk 0:01:34.9]} 60...
Bd6 {[%clk 0:00:03]} 61. Ka7 {[%clk 0:01:34.1]} 61... Bc7 {[%clk 0:00:01.4]} 62.
Ka8 {[%clk 0:01:33.9]} 1-0

[Event "*** Titled Tuesday Blitz"]
[Site "Chess.com"]
[Date "2020.04.07"]
[Round "8"]
[White "XiaoKangZhong"]
[Black "Faqade"]
[Result "0-1"]
[WhiteElo "2426"]
[BlackElo "2603"]
[TimeControl "180+1"]
[EndTime "14:34:07 PDT"]
[Termination "Faqade won by resignation"]

1. e4 {[%clk 0:03:00.9]} 1... c5 {[%clk 0:02:57.9]} 2. c3 {[%clk 0:03:01]} 2...
Nf6 {[%clk 0:02:57.4]} 3. e5 {[%clk 0:03:00.4]} 3... Nd5 {[%clk 0:02:57.9]} 4.
d4 {[%clk 0:03:01]} 4... cxd4 {[%clk 0:02:58.8]} 5. cxd4 {[%clk 0:03:01.9]} 5...
e6 {[%clk 0:02:59.3]} 6. Nf3 {[%clk 0:03:00.4]} 6... d6 {[%clk 0:02:59.8]} 7.
Bc4 {[%clk 0:02:59.8]} 7... Be7 {[%clk 0:02:59.5]} 8. O-O {[%clk 0:02:59.1]}
8... O-O {[%clk 0:02:59.3]} 9. Qe2 {[%clk 0:02:57.5]} 9... b6 {[%clk 0:02:59.1]}
10. Nc3 {[%clk 0:02:56.8]} 10... Nxc3 {[%clk 0:02:57]} 11. bxc3 {[%clk
0:02:57.7]} 11... Bb7 {[%clk 0:02:57.3]} 12. Bb3 {[%clk 0:02:51.3]} 12... Nd7
{[%clk 0:02:55.7]} 13. exd6 {[%clk 0:02:46.2]} 13... Bxd6 {[%clk 0:02:53.5]} 14.
Ne5 {[%clk 0:02:45.6]} 14... Bxe5 {[%clk 0:02:38.1]} 15. dxe5 {[%clk 0:02:46.5]}
15... Nc5 {[%clk 0:02:38.4]} 16. Bc2 {[%clk 0:02:35.9]} 16... Ba6 {[%clk
0:02:36.7]} 17. c4 {[%clk 0:02:32.4]} 17... Qd4 {[%clk 0:02:34.9]} 18. Be3
{[%clk 0:02:06.5]} 18... Qxc4 {[%clk 0:02:32]} 19. Qxc4 {[%clk 0:02:02.9]} 19...
Bxc4 {[%clk 0:02:32.9]} 20. Rfc1 {[%clk 0:02:01.6]} 20... Bd5 {[%clk 0:02:19.4]}
21. a4 {[%clk 0:01:53.6]} 21... Nb7 {[%clk 0:02:14]} 22. Rab1 {[%clk 0:01:47.6]}
22... Rac8 {[%clk 0:02:09.4]} 23. Bd1 {[%clk 0:01:42.4]} 23... Na5 {[%clk
0:02:08.5]} 24. Bd2 {[%clk 0:01:36.4]} 24... Nc4 {[%clk 0:02:05.1]} 25. Bb4
{[%clk 0:01:35.9]} 25... Rfe8 {[%clk 0:02:02.1]} 26. f4 {[%clk 0:01:30.7]} 26...
Ne3 {[%clk 0:02:01.3]} 27. g3 {[%clk 0:01:20.4]} 27... Nxd1 {[%clk 0:01:49.2]}
28. Rxc8 {[%clk 0:01:14.7]} 28... Rxc8 {[%clk 0:01:50.1]} 29. Rxd1 {[%clk
0:01:14.7]} 29... Rc4 {[%clk 0:01:50]} 30. Bd6 {[%clk 0:00:52.9]} 30... Rxa4
{[%clk 0:01:45.4]} 31. Rc1 {[%clk 0:00:51.8]} 31... h5 {[%clk 0:01:45.4]} 32.
Rc8+ {[%clk 0:00:51]} 32... Kh7 {[%clk 0:01:45.2]} 33. Rf8 {[%clk 0:00:51.1]}
33... Kg6 {[%clk 0:01:39.5]} 34. Rg8 {[%clk 0:00:49.3]} 34... Ra2 {[%clk
0:01:30.1]} 35. Bf8 {[%clk 0:00:47.6]} 35... Kf5 {[%clk 0:01:29.5]} 36. Bxg7
{[%clk 0:00:41.2]} 36... Rg2+ {[%clk 0:01:11.6]} 37. Kf1 {[%clk 0:00:41.3]}
37... Rxh2 {[%clk 0:01:12.1]} 38. Rc8 {[%clk 0:00:36.1]} 38... Kg4 {[%clk
0:01:10.3]} 39. Rc3 {[%clk 0:00:33.6]} 39... b5 {[%clk 0:01:10.3]} 40. Bf8
{[%clk 0:00:30.2]} 40... Bf3 {[%clk 0:01:09.9]} 41. Bc5 {[%clk 0:00:21.2]} 41...
Kxg3 {[%clk 0:01:07.4]} 42. Rb3 {[%clk 0:00:20.4]} 42... a6 {[%clk 0:01:03]} 43.
Ra3 {[%clk 0:00:20]} 43... Rc2 {[%clk 0:01:01.3]} 44. Bf2+ {[%clk 0:00:19.3]}
44... Rxf2+ {[%clk 0:01:00.4]} 45. Ke1 {[%clk 0:00:19.1]} 45... Re2+ {[%clk
0:00:59.7]} 46. Kf1 {[%clk 0:00:19.2]} 46... Rd2 {[%clk 0:01:00.2]} 47. Re3
{[%clk 0:00:18]} 47... Rd1+ {[%clk 0:00:59.9]} 48. Re1 {[%clk 0:00:18.9]} 48...
Rxe1+ {[%clk 0:00:59.6]} 49. Kxe1 {[%clk 0:00:19.8]} 49... h4 {[%clk 0:01:00.1]}
50. Kd2 {[%clk 0:00:19.1]} 50... Kxf4 {[%clk 0:00:59.8]} 51. Ke1 {[%clk
0:00:19]} 51... Ke3 {[%clk 0:00:59.8]} 52. Kf1 {[%clk 0:00:19]} 52... b4 {[%clk
0:00:58.2]} 53. Kg1 {[%clk 0:00:19.9]} 53... b3 {[%clk 0:00:58.5]} 54. Kh2
{[%clk 0:00:20.8]} 54... b2 {[%clk 0:00:58.5]} 55. Kh3 {[%clk 0:00:21.7]} 55...
b1=Q {[%clk 0:00:56.8]} 56. Kxh4 {[%clk 0:00:22.6]} 56... Kf4 {[%clk 0:00:56.8]}
0-1

[Event "*** Titled Tuesday Blitz"]
[Site "Chess.com"]
[Date "2020.04.07"]
[Round "8"]
[White "DinaBelenkaya"]
[Black "Usurpov"]
[Result "0-1"]
[WhiteElo "2237"]
[BlackElo "2443"]
[TimeControl "180+1"]
[EndTime "14:34:09 PDT"]
[Termination "Usurpov won on time"]

1. e4 {[%clk 0:03:00.9]} 1... c5 {[%clk 0:02:58.5]} 2. Nf3 {[%clk 0:03:00.7]}
2... e6 {[%clk 0:02:57.8]} 3. g3 {[%clk 0:02:55.8]} 3... d5 {[%clk 0:02:49.7]}
4. exd5 {[%clk 0:02:54.7]} 4... exd5 {[%clk 0:02:50.6]} 5. d4 {[%clk 0:02:55.2]}
5... Nf6 {[%clk 0:02:48]} 6. Bg2 {[%clk 0:02:52.9]} 6... cxd4 {[%clk 0:02:43.6]}
7. O-O {[%clk 0:02:51.6]} 7... Be7 {[%clk 0:02:39.7]} 8. Re1 {[%clk 0:02:49.7]}
8... O-O {[%clk 0:02:38.9]} 9. Nxd4 {[%clk 0:02:48.1]} 9... Nc6 {[%clk
0:02:36.1]} 10. Nc3 {[%clk 0:02:33]} 10... Re8 {[%clk 0:02:29.8]} 11. Bg5 {[%clk
0:02:27.1]} 11... h6 {[%clk 0:02:24.5]} 12. Bf4 {[%clk 0:02:24.5]} 12... Bg4
{[%clk 0:02:06.9]} 13. Qd2 {[%clk 0:02:17.2]} 13... Qb6 {[%clk 0:01:59.7]} 14.
Nb3 {[%clk 0:02:03.1]} 14... Rad8 {[%clk 0:01:47.5]} 15. h3 {[%clk 0:01:03.9]}
15... Be6 {[%clk 0:01:41.1]} 16. Rad1 {[%clk 0:00:50.6]} 16... Bf8 {[%clk
0:01:38.7]} 17. Ne2 {[%clk 0:00:36.9]} 17... Ne4 {[%clk 0:01:22.9]} 18. Qe3
{[%clk 0:00:35.8]} 18... Nc5 {[%clk 0:01:10.1]} 19. Ned4 {[%clk 0:00:21.6]}
19... Bxh3 {[%clk 0:00:20.3]} 20. Qf3 {[%clk 0:00:13.1]} 20... Be6 {[%clk
0:00:18.6]} 21. Nxe6 {[%clk 0:00:09.9]} 21... Nxe6 {[%clk 0:00:17.4]} 22. Rxd5
{[%clk 0:00:08.4]} 22... Rxd5 {[%clk 0:00:15.8]} 23. Qxd5 {[%clk 0:00:07.7]}
23... Nxf4 {[%clk 0:00:16.1]} 24. Rxe8 {[%clk 0:00:05.9]} 24... Nxd5 {[%clk
0:00:15.8]} 25. Bxd5 {[%clk 0:00:05.7]} 25... Qb4 {[%clk 0:00:14]} 26. c4 {[%clk
0:00:04.6]} 26... Qd6 {[%clk 0:00:10.8]} 27. Kg2 {[%clk 0:00:04.2]} 27... Ne7
{[%clk 0:00:10.7]} 28. Ra8 {[%clk 0:00:03.6]} 28... Nxd5 {[%clk 0:00:10.6]} 29.
cxd5 {[%clk 0:00:03.1]} 29... Qxd5+ {[%clk 0:00:11]} 30. Kg1 {[%clk 0:00:03.4]}
30... a6 {[%clk 0:00:11.4]} 31. Rb8 {[%clk 0:00:03.3]} 31... Qc6 {[%clk
0:00:09]} 32. a3 {[%clk 0:00:02.1]} 32... g6 {[%clk 0:00:08.2]} 33. Kh2 {[%clk
0:00:02.1]} 33... Kg7 {[%clk 0:00:08.2]} 34. Kg1 {[%clk 0:00:02.6]} 34... Qc7
{[%clk 0:00:08.6]} 35. Re8 {[%clk 0:00:01.8]} 35... Qd7 {[%clk 0:00:08.8]} 36.
Re3 {[%clk 0:00:01.7]} 36... Qd5 {[%clk 0:00:08.7]} 37. Kf1 {[%clk 0:00:01.3]}
37... Bc5 {[%clk 0:00:08.9]} 0-1

[Event "*** Titled Tuesday Blitz"]
[Site "Chess.com"]
[Date "2020.04.07"]
[Round "8"]
[White "Shield12"]
[Black "vizumatv4hoda"]
[Result "0-1"]
[WhiteElo "2920"]
[BlackElo "2754"]
[TimeControl "180+1"]
[EndTime "14:34:10 PDT"]
[Termination "vizumatv4hoda won by checkmate"]

1. e4 {[%clk 0:03:00.9]} 1... c5 {[%clk 0:02:58.4]} 2. Nf3 {[%clk 0:03:00.9]}
2... d6 {[%clk 0:02:58.7]} 3. d4 {[%clk 0:03:00.9]} 3... cxd4 {[%clk 0:02:59.3]}
4. Nxd4 {[%clk 0:03:01.8]} 4... Nf6 {[%clk 0:02:58.5]} 5. Nc3 {[%clk 0:03:02.5]}
5... g6 {[%clk 0:02:58.7]} 6. Be3 {[%clk 0:03:02]} 6... Bg7 {[%clk 0:02:58.8]}
7. f3 {[%clk 0:03:02.5]} 7... O-O {[%clk 0:02:58]} 8. Qd2 {[%clk 0:03:03.4]}
8... Nc6 {[%clk 0:02:58.9]} 9. O-O-O {[%clk 0:03:03.7]} 9... d5 {[%clk
0:02:56.7]} 10. exd5 {[%clk 0:03:04.6]} 10... Nxd5 {[%clk 0:02:53.2]} 11. Nxc6
{[%clk 0:03:05.1]} 11... bxc6 {[%clk 0:02:54.1]} 12. Bd4 {[%clk 0:03:06]} 12...
Nxc3 {[%clk 0:02:43.2]} 13. Qxc3 {[%clk 0:02:59.3]} 13... Bh6+ {[%clk
0:02:37.9]} 14. Be3 {[%clk 0:02:59.3]} 14... Bxe3+ {[%clk 0:02:37.1]} 15. Qxe3
{[%clk 0:03:00.2]} 15... Qb6 {[%clk 0:02:37.7]} 16. Qxe7 {[%clk 0:03:00.4]}
16... Be6 {[%clk 0:02:32.5]} 17. Qa3 {[%clk 0:03:00.2]} 17... Rad8 {[%clk
0:02:31]} 18. Bd3 {[%clk 0:02:51]} 18... c5 {[%clk 0:02:31.4]} 19. Rhe1 {[%clk
0:02:23.4]} 19... Rd4 {[%clk 0:02:31.5]} 20. Qa6 {[%clk 0:02:18.9]} 20... Qc7
{[%clk 0:02:22.3]} 21. Bf1 {[%clk 0:02:00.8]} 21... Qf4+ {[%clk 0:01:59.7]} 22.
Kb1 {[%clk 0:02:00.6]} 22... Ra4 {[%clk 0:02:00.3]} 23. Rxe6 {[%clk 0:01:43.6]}
23... Rxa6 {[%clk 0:01:58]} 24. Rxa6 {[%clk 0:01:44.5]} 24... Qxh2 {[%clk
0:01:56.4]} 25. Rxa7 {[%clk 0:01:44.1]} 25... Qf4 {[%clk 0:01:48.8]} 26. a4
{[%clk 0:01:42.9]} 26... Qb4 {[%clk 0:01:45.3]} 27. b3 {[%clk 0:01:41.1]} 27...
Rb8 {[%clk 0:01:43.8]} 28. Bb5 {[%clk 0:01:07]} 28... h5 {[%clk 0:01:37.7]} 29.
Rdd7 {[%clk 0:01:03.8]} 29... Qe1+ {[%clk 0:01:37.1]} 30. Kb2 {[%clk 0:01:01.9]}
30... Qe5+ {[%clk 0:01:36.7]} 31. Ka2 {[%clk 0:00:59.7]} 31... Rf8 {[%clk
0:01:32.2]} 32. Bc4 {[%clk 0:00:56]} 32... Kg7 {[%clk 0:01:24.5]} 33. a5 {[%clk
0:00:54.5]} 33... Kh6 {[%clk 0:01:21.2]} 34. a6 {[%clk 0:00:54.3]} 34... Qc3
{[%clk 0:01:19]} 35. Kb1 {[%clk 0:00:44.6]} 35... Qe1+ {[%clk 0:01:12.6]} 36.
Kb2 {[%clk 0:00:44.3]} 36... Qe5+ {[%clk 0:01:13]} 37. c3 {[%clk 0:00:44.3]}
37... Qg5 {[%clk 0:01:01.2]} 38. Rxf7 {[%clk 0:00:41.5]} 38... Qd2+ {[%clk
0:00:49.5]} 39. Ka3 {[%clk 0:00:40.3]} 39... Qxc3 {[%clk 0:00:36.3]} 40. Ka2
{[%clk 0:00:21.8]} 40... Qd2+ {[%clk 0:00:36.6]} 41. Ka3 {[%clk 0:00:20.5]}
41... Rd8 {[%clk 0:00:25.3]} 42. Rab7 {[%clk 0:00:16.9]} 42... Qa5+ {[%clk
0:00:24.1]} 43. Kb2 {[%clk 0:00:17]} 43... Rd2+ {[%clk 0:00:25]} 44. Kc1 {[%clk
0:00:16.2]} 44... Qc3+ {[%clk 0:00:24.9]} 45. Kb1 {[%clk 0:00:16.3]} 45... Qb2#
{[%clk 0:00:25.8]} 0-1